fUST/lending_fUST_20260513
["ID","MTS","AMOUNT","RATE_DAILY","PERIOD"]
[422192424,1778675440000,-500.0,0.00010958,2]
[422192425,1778675440000,-500.0,0.00010958,2]
[422192428,1778675440000,-500.0,0.00010958,2]
[422192430,1778675440000,-500.0,0.00010958,2]
[422192431,1778675440000,-500.0,0.00010958,2]
[422192433,1778675440000,-478.90321676,0.00010958,2]
[422192402,1778675440000,-503.35520321,0.00010958,2]
[422192417,1778675440000,-500.0,0.00010958,2]
[422192400,1778675440000,-502.38541139,0.00010958,2]
[422192367,1778675440000,-443.0,0.00010569,2]
[422192397,1778675440000,-506.92853746,0.00010958,2]
[422192372,1778675440000,-823.0,0.00010725,2]
[422192369,1778675440000,-1713.57147329,0.00010637,21]
[422192370,1778675440000,-6508.47283869,0.00010651,21]
[422192371,1778675440000,-155.0,0.00010666,2]
[422192368,1778675440000,-185.0,0.00010569,2]
[422192373,1778675440000,-2657.0,0.00010725,2]
[422192374,1778675440000,-161.63868993,0.00010728,2]
[422192375,1778675440000,-160.0,0.00010728,2]
[422192377,1778675440000,-1139.85645128,0.00010739,2]
[422192380,1778675440000,-8381.987342,0.00010889,2]
[422192376,1778675440000,-160.0,0.00010728,2]
[422192378,1778675440000,-246.01854921,0.00010855,2]
[422192381,1778675440000,-1480.5,0.000109,2]
[422192382,1778675440000,-6396.35276143,0.000109,2]
[422192398,1778675440000,-500.0,0.00010958,2]
[422192383,1778675440000,-1000.0,0.00010943,2]
[422192384,1778675440000,-153.768,0.00010957,2]
[422192389,1778675440000,-500.0,0.00010958,2]
[422192387,1778675440000,-1336.5558,0.00010958,2]
[422192386,1778675440000,-1311.6819,0.00010958,2]
[422192388,1778675440000,-500.0,0.00010958,2]
[422192390,1778675440000,-500.0,0.00010958,2]
[422192434,1778675440000,-500.0,0.00010958,2]
[422192392,1778675440000,-204.215226,0.00010958,2]
[422192393,1778675440000,-494.678663,0.00010958,2]
[422192391,1778675440000,-168.533773,0.00010958,2]
[422192394,1778675440000,-14851.630189,0.00010958,2]
[422192395,1778675440000,-500.0,0.00010958,2]
[422192396,1778675440000,-500.0,0.00010958,2]
[422192399,1778675440000,-501.36932713,0.00010958,2]
[422192385,1778675440000,-606.3143,0.00010958,2]
[422192429,1778675440000,-500.0,0.00010958,2]
[422192477,1778675440000,-500.0,0.00010958,2]
[422192435,1778675440000,-500.0,0.00010958,2]
[422192471,1778675440000,-500.0,0.00010958,2]
[422192470,1778675440000,-500.0,0.00010958,2]
[422192472,1778675440000,-565.27532595,0.00010958,2]
[422192475,1778675440000,-500.0,0.00010958,2]
[422192474,1778675440000,-861.45,0.00010958,2]
[422192473,1778675440000,-500.0,0.00010958,2]
[422192476,1778675440000,-500.0,0.00010958,2]
[422192481,1778675440000,-520.61566555,0.00010958,2]
[422192480,1778675440000,-571.81241927,0.00010958,2]
[422192478,1778675440000,-503.83108526,0.00010958,2]
[422192479,1778675440000,-500.0,0.00010958,2]
[422192482,1778675440000,-500.0,0.00010958,2]
[422192483,1778675440000,-500.0,0.00010958,2]
[422192485,1778675440000,-500.0,0.00010958,2]
[422192469,1778675440000,-504.2998564,0.00010958,2]
[422192484,1778675440000,-503.05190896,0.00010958,2]
[422192487,1778675440000,-502.90446043,0.00010958,2]
[422192489,1778675440000,-500.0,0.00010958,2]
[422192486,1778675440000,-503.42700018,0.00010958,2]
[422192490,1778675440000,-2005.87,0.00010958,2]
[422192492,1778675440000,-500.0,0.00010958,2]
[422192495,1778675440000,-500.0,0.00010958,2]
[422192491,1778675440000,-500.0,0.00010958,2]
[422192493,1778675440000,-500.0,0.00010958,2]
[422192494,1778675440000,-500.0,0.00010958,2]
[422192496,1778675440000,-501.03063392,0.00010958,2]
[422192497,1778675440000,-500.0,0.00010958,2]
[422192498,1778675440000,-500.0,0.00010958,2]
[422192500,1778675440000,-503.49105146,0.00010958,2]
[422192432,1778675440000,-500.0,0.00010958,2]
[422192488,1778675440000,-500.0,0.00010958,2]
[422192468,1778675440000,-501.46831111,0.00010958,2]
[422192499,1778675440000,-500.0,0.00010958,2]
[422192467,1778675440000,-500.0,0.00010958,2]
[422192465,1778675440000,-502.56376681,0.00010958,2]
[422192436,1778675440000,-500.0,0.00010958,2]
[422192440,1778675440000,-583.90980718,0.00010958,2]
[422192438,1778675440000,-500.0,0.00010958,2]
[422192439,1778675440000,-771.02,0.00010958,2]
[422192441,1778675440000,-500.0,0.00010958,2]
[422192446,1778675440000,-500.0,0.00010958,2]
[422192442,1778675440000,-500.0,0.00010958,2]
[422192444,1778675440000,-500.0,0.00010958,2]
[422192447,1778675440000,-500.0,0.00010958,2]
[422192443,1778675440000,-1047.82,0.00010958,2]
[422192445,1778675440000,-500.0,0.00010958,2]
[422192448,1778675440000,-500.0,0.00010958,2]
[422192451,1778675440000,-602.30001841,0.00010958,2]
[422192450,1778675440000,-500.0,0.00010958,2]
[422192437,1778675440000,-500.0,0.00010958,2]
[422192452,1778675440000,-503.17299459,0.00010958,2]
[422192453,1778675440000,-503.76963261,0.00010958,2]
[422192464,1778675440000,-570.71139095,0.00010958,2]
[422192466,1778675440000,-502.21799667,0.00010958,2]
[422192462,1778675440000,-501.57291198,0.00010958,2]
[422192460,1778675440000,-500.0,0.00010958,2]
[422192459,1778675440000,-503.47950564,0.00010958,2]
[422192463,1778675440000,-503.40779934,0.00010958,2]
[422192456,1778675440000,-500.0,0.00010958,2]
[422192457,1778675440000,-502.95034408,0.00010958,2]
[422192458,1778675440000,-500.0,0.00010958,2]
[422192455,1778675440000,-500.0,0.00010958,2]
[422192454,1778675440000,-540.12868538,0.00010958,2]
[422192461,1778675440000,-500.0,0.00010958,2]
[422192449,1778675440000,-500.0,0.00010958,2]
[422192543,1778675441000,-503.04543547,0.00010958,2]
[422192542,1778675441000,-849.06,0.00010958,2]
[422192539,1778675441000,-500.0,0.00010958,2]
[422192540,1778675441000,-503.64902889,0.00010958,2]
[422192541,1778675441000,-502.27240183,0.00010958,2]
[422192533,1778675441000,-500.0,0.00010958,2]
[422192536,1778675441000,-500.0,0.00010958,2]
[422192535,1778675441000,-552.19751777,0.00010958,2]
[422192537,1778675441000,-500.0,0.00010958,2]
[422192544,1778675441000,-503.67716649,0.00010958,2]
[422192532,1778675441000,-1000.0,0.00010958,2]
[422192538,1778675441000,-500.0,0.00010958,2]
[422192534,1778675441000,-500.0,0.00010958,2]
[422192551,1778675441000,-500.0,0.00010958,2]
[422192545,1778675441000,-501.35692997,0.00010958,2]
[422192549,1778675441000,-500.0,0.00010958,2]
[422192547,1778675441000,-503.49813441,0.00010958,2]
[422192550,1778675441000,-500.0,0.00010958,2]
[422192546,1778675441000,-185.94165002,0.00010958,2]
[422192552,1778675441000,-500.0,0.00010958,2]
[422192554,1778675441000,-502.32174197,0.00010958,2]
[422192555,1778675441000,-502.69944847,0.00010958,2]
[422192553,1778675441000,-500.0,0.00010958,2]
[422192556,1778675441000,-500.0,0.00010958,2]
[422192557,1778675441000,-500.0,0.00010958,2]
[422192531,1778675441000,-500.89556441,0.00010958,2]
[422192560,1778675441000,-504.59044677,0.00010958,2]
[422192548,1778675441000,-500.0,0.00010958,2]
[422192528,1778675441000,-502.39209535,0.00010958,2]
[422192512,1778675441000,-500.0,0.00010958,2]
[422192526,1778675441000,-500.0,0.00010958,2]
[422192559,1778675441000,-500.0,0.00010958,2]
[422192502,1778675441000,-507.12462608,0.00010958,2]
[422192501,1778675441000,-500.0,0.00010958,2]
[422192503,1778675441000,-502.07854562,0.00010958,2]
[422192507,1778675441000,-503.48674818,0.00010958,2]
[422192504,1778675441000,-500.0,0.00010958,2]
[422192505,1778675441000,-503.74859371,0.00010958,2]
[422192509,1778675441000,-500.0,0.00010958,2]
[422192506,1778675441000,-571.30736685,0.00010958,2]
[422192508,1778675441000,-500.0,0.00010958,2]
[422192510,1778675441000,-938.75,0.00010958,2]
[422192511,1778675441000,-500.92609994,0.00010958,2]
[422192514,1778675441000,-500.0,0.00010958,2]
[422192513,1778675441000,-501.8041116,0.00010958,2]
[422192515,1778675441000,-500.0,0.00010958,2]
[422192516,1778675441000,-454.0,0.00010958,2]
[422192517,1778675441000,-510.02755293,0.00010958,2]
[422192518,1778675441000,-500.0,0.00010958,2]
[422192519,1778675441000,-500.0,0.00010958,2]
[422192520,1778675441000,-500.0,0.00010958,2]
[422192521,1778675441000,-500.0,0.00010958,2]
[422192522,1778675441000,-502.77250277,0.00010958,2]
[422192523,1778675441000,-500.0,0.00010958,2]
[422192524,1778675441000,-500.0,0.00010958,2]
[422192525,1778675441000,-500.0,0.00010958,2]
[422192529,1778675441000,-744.08,0.00010958,2]
[422192527,1778675441000,-501.38320639,0.00010958,2]
[422192530,1778675441000,-500.80431658,0.00010958,2]
[422192561,1778675441000,-500.0,0.00010958,2]
[422192562,1778675441000,-500.0,0.00010958,2]
[422192610,1778675441000,-617.34,0.00010958,2]
[422192594,1778675441000,-251.69865027,0.00010958,2]
[422192595,1778675441000,-500.0,0.00010958,2]
[422192596,1778675441000,-586.61425742,0.00010958,2]
[422192598,1778675441000,-501.76752397,0.00010958,2]
[422192597,1778675441000,-503.05493139,0.00010958,2]
[422192600,1778675441000,-501.69095155,0.00010958,2]
[422192601,1778675441000,-500.0,0.00010958,2]
[422192602,1778675441000,-513.53127124,0.00010958,2]
[422192605,1778675441000,-500.0,0.00010958,2]
[422192604,1778675441000,-500.0,0.00010958,2]
[422192603,1778675441000,-503.70976982,0.00010958,2]
[422192606,1778675441000,-835.38,0.00010958,2]
[422192608,1778675441000,-576.09231449,0.00010958,2]
[422192609,1778675441000,-501.40072104,0.00010958,2]
[422192612,1778675441000,-500.0,0.00010958,2]
[422192607,1778675441000,-500.0,0.00010958,2]
[422192611,1778675441000,-500.0,0.00010958,2]
[422192613,1778675441000,-500.0,0.00010958,2]
[422192615,1778675441000,-1030.09,0.00010958,2]
[422192614,1778675441000,-504.22410738,0.00010958,2]
[422192618,1778675441000,-504.75332706,0.00010958,2]
[422192617,1778675441000,-500.0,0.00010958,2]
[422192616,1778675441000,-201.57234886,0.00010958,2]
[422192619,1778675441000,-500.0,0.00010958,2]
[422192620,1778675441000,-500.0,0.00010958,2]
[422192621,1778675441000,-501.12884088,0.00010958,2]
[422192558,1778675441000,-1206.99,0.00010958,2]
[422192593,1778675441000,-502.58090955,0.00010958,2]
[422192591,1778675441000,-504.78218113,0.00010958,2]
[422192599,1778675441000,-1703.04,0.00010958,2]
[422192592,1778675441000,-500.0,0.00010958,2]
[422192563,1778675441000,-500.0,0.00010958,2]
[422192564,1778675441000,-503.20163182,0.00010958,2]
[422192566,1778675441000,-502.22548789,0.00010958,2]
[422192565,1778675441000,-508.64427401,0.00010958,2]
[422192567,1778675441000,-253.68999332,0.00010958,2]
[422192568,1778675441000,-500.0,0.00010958,2]
[422192569,1778675441000,-500.0,0.00010958,2]
[422192572,1778675441000,-500.0,0.00010958,2]
[422192590,1778675441000,-595.2,0.00010958,2]
[422192570,1778675441000,-500.0,0.00010958,2]
[422192574,1778675441000,-500.0,0.00010958,2]
[422192573,1778675441000,-500.0,0.00010958,2]
[422192575,1778675441000,-500.0,0.00010958,2]
[422192579,1778675441000,-503.21748447,0.00010958,2]
[422192571,1778675441000,-512.33055061,0.00010958,2]
[422192622,1778675441000,-500.0,0.00010958,2]
[422192589,1778675441000,-500.0,0.00010958,2]
[422192576,1778675441000,-502.85509101,0.00010958,2]
[422192588,1778675441000,-500.0,0.00010958,2]
[422192587,1778675441000,-501.23443116,0.00010958,2]
[422192585,1778675441000,-500.96091473,0.00010958,2]
[422192584,1778675441000,-157.468688,0.00010958,2]
[422192586,1778675441000,-500.0,0.00010958,2]
[422192583,1778675441000,-503.66844258,0.00010958,2]
[422192581,1778675441000,-500.0,0.00010958,2]
[422192578,1778675441000,-167.818738,0.00010958,2]
[422192580,1778675441000,-500.0,0.00010958,2]
[422192577,1778675441000,-500.0,0.00010958,2]
[422192582,1778675441000,-386.21212228,0.00010958,2]
[422192671,1778675442000,-500.0,0.00010958,2]
[422192664,1778675442000,-527.09518037,0.00010958,2]
[422192669,1778675442000,-567.218287,0.00010958,2]
[422192667,1778675442000,-491.9871607,0.00010958,2]
[422192666,1778675442000,-500.0,0.00010958,2]
[422192661,1778675442000,-998.3,0.00010958,2]
[422192656,1778675442000,-501.33723243,0.00010958,2]
[422192663,1778675442000,-500.0,0.00010958,2]
[422192662,1778675442000,-1272.3,0.00010958,2]
[422192660,1778675442000,-500.0,0.00010958,2]
[422192658,1778675442000,-500.0,0.00010958,2]
[422192670,1778675442000,-500.0,0.00010958,2]
[422192665,1778675442000,-500.0,0.00010958,2]
[422192659,1778675442000,-688.03,0.00010958,2]
[422192685,1778675442000,-500.0,0.00010958,2]
[422192668,1778675442000,-572.18244899,0.00010958,2]
[422192674,1778675442000,-500.0,0.00010958,2]
[422192675,1778675442000,-500.0,0.00010958,2]
[422192677,1778675442000,-500.0,0.00010958,2]
[422192679,1778675442000,-530.49778293,0.00010958,2]
[422192678,1778675442000,-500.0,0.00010958,2]
[422192673,1778675442000,-1815.87,0.00010958,2]
[422192676,1778675442000,-500.0,0.00010958,2]
[422192684,1778675442000,-503.30258677,0.00010958,2]
[422192680,1778675442000,-505.5180421,0.00010958,2]
[422192682,1778675442000,-500.0,0.00010958,2]
[422192683,1778675442000,-1007.56,0.00010958,2]
[422192681,1778675442000,-501.55263653,0.00010958,2]
[422192657,1778675442000,-500.0,0.00010958,2]
[422192672,1778675442000,-500.0,0.00010958,2]
[422192655,1778675442000,-500.0,0.00010958,2]
[422192626,1778675442000,-500.0,0.00010958,2]
[422192652,1778675442000,-500.0,0.00010958,2]
[422192623,1778675442000,-500.0,0.00010958,2]
[422192624,1778675442000,-512.58926794,0.00010958,2]
[422192625,1778675442000,-532.63094933,0.00010958,2]
[422192627,1778675442000,-501.02682913,0.00010958,2]
[422192628,1778675442000,-500.0,0.00010958,2]
[422192629,1778675442000,-500.0,0.00010958,2]
[422192630,1778675442000,-504.7815547,0.00010958,2]
[422192632,1778675442000,-500.0,0.00010958,2]
[422192631,1778675442000,-500.0,0.00010958,2]
[422192633,1778675442000,-500.0,0.00010958,2]
[422192635,1778675442000,-633.33054104,0.00010958,2]
[422192636,1778675442000,-500.0,0.00010958,2]
[422192637,1778675442000,-500.58402147,0.00010958,2]
[422192654,1778675442000,-500.0,0.00010958,2]
[422192638,1778675442000,-500.60400982,0.00010958,2]
[422192641,1778675442000,-500.0,0.00010958,2]
[422192640,1778675442000,-500.0,0.00010958,2]
[422192642,1778675442000,-504.69741536,0.00010958,2]
[422192644,1778675442000,-500.0,0.00010958,2]
[422192645,1778675442000,-500.0,0.00010958,2]
[422192643,1778675442000,-500.0,0.00010958,2]
[422192646,1778675442000,-500.0,0.00010958,2]
[422192648,1778675442000,-500.0,0.00010958,2]
[422192650,1778675442000,-500.0,0.00010958,2]
[422192651,1778675442000,-860.48,0.00010958,2]
[422192649,1778675442000,-500.0,0.00010958,2]
[422192653,1778675442000,-500.0,0.00010958,2]
[422192647,1778675442000,-500.92625415,0.00010958,2]
[422192634,1778675442000,-500.0,0.00010958,2]
[422192686,1778675442000,-501.8300902,0.00010958,2]
[422192639,1778675442000,-500.0,0.00010958,2]
[422192689,1778675442000,-502.2145434,0.00010958,2]
[422192714,1778675442000,-403.17215073,0.00010958,2]
[422192726,1778675442000,-500.0,0.00010958,2]
[422192721,1778675442000,-501.41326114,0.00010958,2]
[422192713,1778675442000,-500.0,0.00010958,2]
[422192722,1778675442000,-502.19059013,0.00010958,2]
[422192727,1778675442000,-500.0,0.00010958,2]
[422192729,1778675442000,-500.81070256,0.00010958,2]
[422192728,1778675442000,-740.2,0.00010958,2]
[422192732,1778675442000,-500.0,0.00010958,2]
[422192730,1778675442000,-501.03425009,0.00010958,2]
[422192731,1778675442000,-502.04671242,0.00010958,2]
[422192734,1778675442000,-503.58414051,0.00010958,2]
[422192733,1778675442000,-501.7129755,0.00010958,2]
[422192735,1778675442000,-504.62266637,0.00010958,2]
[422192737,1778675442000,-762.72,0.00010958,2]
[422192736,1778675442000,-504.31175332,0.00010958,2]
[422192738,1778675442000,-500.0,0.00010958,2]
[422192739,1778675442000,-500.0,0.00010958,2]
[422192740,1778675442000,-500.0,0.00010958,2]
[422192744,1778675442000,-500.87389232,0.00010958,2]
[422192741,1778675442000,-500.0,0.00010958,2]
[422192745,1778675442000,-502.71938361,0.00010958,2]
[422192742,1778675442000,-604.92866513,0.00010958,2]
[422192746,1778675442000,-500.0,0.00010958,2]
[422192747,1778675442000,-500.0,0.00010958,2]
[422192748,1778675442000,-500.0,0.00010958,2]
[422192749,1778675442000,-400.83119684,0.00010958,2]
[422192750,1778675442000,-500.0,0.00010958,2]
[422192688,1778675442000,-502.16157001,0.00010958,2]
[422192719,1778675442000,-500.0,0.00010958,2]
[422192717,1778675442000,-500.0,0.00010958,2]
[422192743,1778675442000,-501.66177848,0.00010958,2]
[422192720,1778675442000,-500.0,0.00010958,2]
[422192716,1778675442000,-500.0,0.00010958,2]
[422192687,1778675442000,-501.98473523,0.00010958,2]
[422192692,1778675442000,-500.0,0.00010958,2]
[422192691,1778675442000,-507.66684953,0.00010958,2]
[422192693,1778675442000,-503.23504444,0.00010958,2]
[422192695,1778675442000,-500.0,0.00010958,2]
[422192697,1778675442000,-500.0,0.00010958,2]
[422192694,1778675442000,-500.0,0.00010958,2]
[422192696,1778675442000,-500.0,0.00010958,2]
[422192698,1778675442000,-500.0,0.00010958,2]
[422192700,1778675442000,-500.0,0.00010958,2]
[422192699,1778675442000,-500.0,0.00010958,2]
[422192701,1778675442000,-500.0,0.00010958,2]
[422192704,1778675442000,-513.14480762,0.00010958,2]
[422192690,1778675442000,-500.95918158,0.00010958,2]
[422192705,1778675442000,-500.0,0.00010958,2]
[422192706,1778675442000,-500.0,0.00010958,2]
[422192723,1778675442000,-500.0,0.00010958,2]
[422192725,1778675442000,-500.0,0.00010958,2]
[422192724,1778675442000,-503.39762601,0.00010958,2]
[422192715,1778675442000,-500.0,0.00010958,2]
[422192710,1778675442000,-502.51182263,0.00010958,2]
[422192712,1778675442000,-500.0,0.00010958,2]
[422192718,1778675442000,-500.0,0.00010958,2]
[422192711,1778675442000,-500.99346253,0.00010958,2]
[422192708,1778675442000,-1878.65,0.00010958,2]
[422192709,1778675442000,-500.0,0.00010958,2]
[422192707,1778675442000,-500.0,0.00010958,2]
[422192702,1778675442000,-500.0,0.00010958,2]
[422192703,1778675442000,-501.78370108,0.00010958,2]
[422192789,1778675443000,-523.02939779,0.00010958,2]
[422192786,1778675443000,-500.0,0.00010958,2]
[422192788,1778675443000,-537.68751401,0.00010958,2]
[422192787,1778675443000,-500.0,0.00010958,2]
[422192784,1778675443000,-501.34913233,0.00010958,2]
[422192782,1778675443000,-500.0,0.00010958,2]
[422192783,1778675443000,-500.0,0.00010958,2]
[422192780,1778675443000,-501.41861128,0.00010958,2]
[422192781,1778675443000,-501.5683423,0.00010958,2]
[422192785,1778675443000,-500.0,0.00010958,2]
[422192790,1778675443000,-2528.37,0.00010958,2]
[422192795,1778675443000,-500.0,0.00010958,2]
[422192794,1778675443000,-500.0,0.00010958,2]
[422192792,1778675443000,-735.26,0.00010958,2]
[422192793,1778675443000,-503.30300213,0.00010958,2]
[422192796,1778675443000,-505.04113161,0.00010958,2]
[422192797,1778675443000,-4684.87,0.00010958,2]
[422192799,1778675443000,-500.0,0.00010958,2]
[422192800,1778675443000,-500.0,0.00010958,2]
[422192798,1778675443000,-500.0,0.00010958,2]
[422192777,1778675443000,-500.0,0.00010958,2]
[422192801,1778675443000,-500.0,0.00010958,2]
[422192791,1778675443000,-500.77548735,0.00010958,2]
[422192779,1778675443000,-816.71,0.00010958,2]
[422192761,1778675443000,-500.0,0.00010958,2]
[422192776,1778675443000,-500.0,0.00010958,2]
[422192804,1778675443000,-2172.1,0.00010958,2]
[422192752,1778675443000,-501.94794716,0.00010958,2]
[422192751,1778675443000,-500.0,0.00010958,2]
[422192753,1778675443000,-503.35884692,0.00010958,2]
[422192754,1778675443000,-500.0,0.00010958,2]
[422192756,1778675443000,-500.36565427,0.00010958,2]
[422192755,1778675443000,-500.0,0.00010958,2]
[422192757,1778675443000,-501.47170372,0.00010958,2]
[422192758,1778675443000,-500.0,0.00010958,2]
[422192760,1778675443000,-503.3237275,0.00010958,2]
[422192778,1778675443000,-505.39215815,0.00010958,2]
[422192759,1778675443000,-501.3928627,0.00010958,2]
[422192763,1778675443000,-500.0,0.00010958,2]
[422192765,1778675443000,-500.66123941,0.00010958,2]
[422192767,1778675443000,-500.849762,0.00010958,2]
[422192764,1778675443000,-542.66,0.00010958,2]
[422192769,1778675443000,-500.0,0.00010958,2]
[422192771,1778675443000,-500.0,0.00010958,2]
[422192770,1778675443000,-500.0,0.00010958,2]
[422192775,1778675443000,-501.4908382,0.00010958,2]
[422192772,1778675443000,-503.04733855,0.00010958,2]
[422192774,1778675443000,-501.4505078,0.00010958,2]
[422192762,1778675443000,-506.06115387,0.00010958,2]
[422192803,1778675443000,-1111.06,0.00010958,2]
[422192809,1778675443000,-503.02816541,0.00010958,2]
[422192806,1778675443000,-500.0,0.00010958,2]
[422192835,1778675443000,-500.0,0.00010958,2]
[422192836,1778675443000,-500.0,0.00010958,2]
[422192838,1778675443000,-508.79475617,0.00010958,2]
[422192839,1778675443000,-1750.21,0.00010958,2]
[422192840,1778675443000,-1490.22,0.00010958,2]
[422192841,1778675443000,-500.0,0.00010958,2]
[422192837,1778675443000,-871.88,0.00010958,2]
[422192843,1778675443000,-500.0,0.00010958,2]
[422192842,1778675443000,-3494.5,0.00010958,2]
[422192845,1778675443000,-500.0,0.00010958,2]
[422192846,1778675443000,-500.0,0.00010958,2]
[422192849,1778675443000,-1724.41,0.00010958,2]
[422192848,1778675443000,-1701.63,0.00010958,2]
[422192852,1778675443000,-500.0,0.00010958,2]
[422192847,1778675443000,-500.0,0.00010958,2]
[422192851,1778675443000,-500.0,0.00010958,2]
[422192855,1778675443000,-500.0,0.00010958,2]
[422192853,1778675443000,-502.70484197,0.00010958,2]
[422192857,1778675443000,-1288.31,0.00010958,2]
[422192856,1778675443000,-500.0,0.00010958,2]
[422192854,1778675443000,-502.75172263,0.00010958,2]
[422192805,1778675443000,-503.99028823,0.00010958,2]
[422192858,1778675443000,-1075.24,0.00010958,2]
[422192834,1778675443000,-500.0,0.00010958,2]
[422192833,1778675443000,-500.0,0.00010958,2]
[422192844,1778675443000,-500.0,0.00010958,2]
[422192831,1778675443000,-507.63239232,0.00010958,2]
[422192802,1778675443000,-1294.43,0.00010958,2]
[422192832,1778675443000,-500.86361273,0.00010958,2]
[422192810,1778675443000,-500.0,0.00010958,2]
[422192808,1778675443000,-1786.62,0.00010958,2]
[422192811,1778675443000,-500.0,0.00010958,2]
[422192813,1778675443000,-658.58,0.00010958,2]
[422192815,1778675443000,-500.0,0.00010958,2]
[422192816,1778675443000,-1938.55,0.00010958,2]
[422192819,1778675443000,-500.0,0.00010958,2]
[422192818,1778675443000,-500.0,0.00010958,2]
[422192817,1778675443000,-591.0,0.00010958,2]
[422192807,1778675443000,-500.0,0.00010958,2]
[422192821,1778675443000,-1772.21,0.00010958,2]
[422192827,1778675443000,-500.0,0.00010958,2]
[422192822,1778675443000,-504.03241565,0.00010958,2]
[422192823,1778675443000,-500.0,0.00010958,2]
[422192825,1778675443000,-2077.55,0.00010958,2]
[422192826,1778675443000,-500.0,0.00010958,2]
[422192824,1778675443000,-505.20438455,0.00010958,2]
[422192829,1778675443000,-500.0,0.00010958,2]
[422192830,1778675443000,-500.0,0.00010958,2]
[422192820,1778675443000,-500.0,0.00010958,2]
[422192828,1778675443000,-698.52,0.00010958,2]
[422192899,1778675444000,-656.93,0.00010958,2]
[422192892,1778675444000,-1378.63,0.00010958,2]
[422192894,1778675444000,-27074.17,0.00010958,2]
[422192889,1778675444000,-500.0,0.00010958,2]
[422192895,1778675444000,-1129.55,0.00010958,2]
[422192893,1778675444000,-1733.88,0.00010958,2]
[422192896,1778675444000,-544.68791605,0.00010958,2]
[422192890,1778675444000,-503.12202598,0.00010958,2]
[422192888,1778675444000,-500.0,0.00010958,2]
[422192891,1778675444000,-500.0,0.00010958,2]
[422192897,1778675444000,-2481.96,0.00010958,2]
[422192903,1778675444000,-500.0,0.00010958,2]
[422192898,1778675444000,-5335.3,0.00010958,2]
[422192901,1778675444000,-506.18262415,0.00010958,2]
[422192902,1778675444000,-554.57,0.00010958,2]
[422192904,1778675444000,-500.0,0.00010958,2]
[422192905,1778675444000,-500.0,0.00010958,2]
[422192907,1778675444000,-500.0,0.00010958,2]
[422192906,1778675444000,-1712.08,0.00010958,2]
[422192908,1778675444000,-502.78189397,0.00010958,2]
[422192909,1778675444000,-511.64119613,0.00010958,2]
[422192910,1778675444000,-500.0,0.00010958,2]
[422192883,1778675444000,-2980.57,0.00010958,2]
[422192900,1778675444000,-511.94798058,0.00010958,2]
[422192887,1778675444000,-808.67,0.00010958,2]
[422192860,1778675444000,-500.0,0.00010958,2]
[422192884,1778675444000,-500.0,0.00010958,2]
[422192912,1778675444000,-502.20866904,0.00010958,2]
[422192859,1778675444000,-505.51857143,0.00010958,2]
[422192861,1778675444000,-500.70623827,0.00010958,2]
[422192862,1778675444000,-3810.94,0.00010958,2]
[422192863,1778675444000,-500.0,0.00010958,2]
[422192864,1778675444000,-634.0969884,0.00010958,2]
[422192865,1778675444000,-153.64894742,0.00010958,2]
[422192869,1778675444000,-500.0,0.00010958,2]
[422192867,1778675444000,-1492.29,0.00010958,2]
[422192866,1778675444000,-408.91677264,0.00010958,2]
[422192868,1778675444000,-3950.78,0.00010958,2]